bitfinex-derivatives/quotes_ETHF0:USTF0_20250612
["timestamp","ask_amount","ask_price","bid_price","bid_amount"]
[1749692069804,1.17531515,2757.1,2756.7,17.983]
[1749692069805,3.2132408,2757.4,2756.7,19.2281]
[1749692070006,3.2078,2757.1,2756.5,3.2132408]
[1749692070203,3.2078,2757.1,2756.5,3.8598408]
[1749692070409,3.933,2757.1,2756.8,0.72526]
[1749692070613,3.2078,2757.1,2757.0,0.72521]
[1749692070805,0.72524,2756.9,2756.6,1.2397]
[1749692071005,0.72525,2756.9,2756.7,23.082]
[1749692071701,1.2387,2757.0,2756.7,23.082]
[1749692071903,1.2387,2757.0,2756.9,0.72524]
[1749692072210,5.1955508,2757.4,2756.7,23.082]
[1749692072406,1.17521426,2757.3,2756.8,1.2397]
[1749692072601,3.2078,2757.1,2756.9,0.72522]
[1749692072806,3.2078,2757.1,2757.0,0.72521]
[1749692073007,4.38310981,2757.1,2756.8,1.2397]
[1749692073209,3.2078,2757.1,2756.9,0.72524]
[1749692073410,3.2078,2757.1,2757.0,0.72521]
[1749692073608,4.3832716,2757.1,2757.0,0.72521]
[1749692074506,4.3832716,2757.1,2756.9,0.72523]
[1749692074811,0.72517,2757.2,2757.0,0.72521]
[1749692075011,1.17565271,2757.1,2757.0,0.72521]
[1749692075314,0.72526,2756.9,2756.5,0.0054408]
[1749692075514,0.72523,2757.0,2756.7,0.72528]
[1749692075711,4.4871,2757.1,2756.9,0.72522]
[1749692075712,3.2078,2757.1,2756.9,0.72522]
[1749692076017,0.0054408,2757.4,2756.8,21.1378]
[1749692076018,3.2132408,2757.4,2756.8,21.1378]
[1749692076210,0.72518,2757.2,2756.9,3.17753]
[1749692076409,1.17608914,2757.1,2756.9,3.17753]
[1749692076608,0.72518,2757.2,2756.9,3.17753]
[1749692076804,1.90210253,2757.1,2756.9,1.2528]
[1749692077003,0.72518,2757.2,2757.0,0.72521]
[1749692077206,1.17704922,2757.1,2757.0,0.72521]
[1749692077411,1.90223922,2757.1,2756.9,3.17753]
[1749692077609,3.933,2757.1,2756.9,1.32444]
[1749692077914,1.17727233,2757.0,2756.9,1.32444]
[1749692078516,3.933,2757.1,2756.9,1.32444]
[1749692078708,3.2078,2757.1,2757.0,0.43511]
[1749692078909,3.2078,2757.1,2757.0,1.63461]
[1749692079110,3.2132408,2757.4,2757.3,0.72514]
[1749692079615,3.2132408,2757.4,2757.1,0.72518]
[1749692079914,0.72514,2757.3,2757.1,17.914]
[1749692080109,0.72514,2757.3,2757.1,18.63918]
[1749692080315,3.2132408,2757.4,2756.6,3.2078]
[1749692080511,1.213,2757.3,2756.5,0.6345408]
[1749692080718,0.72525,2756.9,2756.6,18.64131]
[1749692081017,3.2078,2757.1,2756.6,18.64131]
[1749692081215,0.72525,2756.9,2756.7,0.72529]
[1749692081410,0.72528,2756.8,2756.6,17.916]
[1749692081712,0.72525,2756.9,2756.7,0.72529]
[1749692082113,0.5941,2757.0,2756.6,17.916]
[1749692082305,0.72526,2756.9,2756.7,0.72528]
[1749692082508,1.31932,2757.0,2756.8,0.72527]
[1749692082714,0.72525,2756.9,2756.7,0.72528]
[1749692082916,1.31933,2757.0,2756.8,0.72526]
[1749692083120,0.5941,2757.0,2756.9,0.72524]
[1749692083813,3.2132408,2757.4,2756.9,5.115]
[1749692084016,3.9383608,2757.4,2757.2,0.72515]
[1749692084911,3.9383508,2757.4,2757.3,0.72514]
[1749692085119,1.92079197,2757.4,2757.2,0.72515]
[1749692085307,0.7305508,2757.4,2757.2,0.72515]
[1749692085618,1.19024984,2757.3,2756.5,3.2132408]
[1749692085811,1.19024984,2757.3,2756.6,5.02111]
[1749692085812,1.79514984,2757.2,2756.6,5.02111]
[1749692086013,0.6049,2757.2,2756.9,0.72523]
[1749692086214,0.72519,2757.1,2756.9,0.72523]
[1749692086417,0.6049,2757.2,2756.7,0.6528]
[1749692086918,3.93302,2757.0,2756.8,0.72527]
[1749692087116,0.72524,2756.9,2756.7,1.37808]
[1749692087313,0.72531,2756.7,2756.5,23.5275408]
[1749692087509,0.72531,2756.7,2756.5,6.3828708]
[1749692088019,0.72531,2756.7,2756.5,5.6575408]
[1749692088220,0.72531,2756.7,2756.5,6.3828808]
[1749692088422,0.72531,2756.7,2756.5,5.6575408]
[1749692088621,0.72531,2756.7,2756.5,6.3828708]
[1749692088917,0.72532,2756.6,2756.5,0.0054408]
[1749692089116,3.80522129,2756.6,2756.5,0.0054408]
[1749692089918,1.19050129,2756.6,2756.5,0.0054408]
[1749692090116,0.6523,2756.9,2756.5,0.0054408]
[1749692090320,1.37756,2756.9,2756.7,0.72529]
[1749692090916,2.01608,2756.8,2756.5,0.0054408]
[1749692091122,1.37756,2756.9,2756.6,0.7253]
[1749692091620,0.72528,2756.8,2756.6,0.7253]
[1749692091821,0.72528,2756.8,2756.6,0.72532]
[1749692092322,1.37756,2756.9,2756.7,0.72529]
[1749692092526,0.6523,2756.9,2756.7,0.72529]
[1749692092823,1.37754,2756.9,2756.7,0.72529]
[1749692093122,3.2078,2757.1,2757.0,0.72521]
[1749692094219,0.0054408,2757.4,2757.3,0.72514]
[1749692094426,0.0054408,2757.4,2757.3,8.97494]
[1749692095227,0.6085,2758.0,2757.3,13.2498]
[1749692095420,3.2078,2758.3,2757.6,3.2078]
[1749692095626,2.1413472,2758.7,2758.6,0.72479]
[1749692095627,3.2078,2758.7,2758.6,0.72479]
[1749692095826,4.43542792,2758.7,2758.6,0.72479]
[1749692096028,4.43542792,2758.7,2758.4,17.832]
[1749692096217,3.2078,2758.7,2758.4,19.0423]
[1749692096625,3.2078,2758.7,2758.6,0.72479]
[1749692096824,3.2078,2758.7,2758.5,0.72481]
[1749692097224,3.2078,2758.7,2758.5,1.93511]
[1749692097425,3.2078,2758.7,2758.5,1.2103]
[1749692097824,3.2078,2758.7,2758.5,1.9351]
[1749692098025,3.2078,2758.7,2758.5,1.2103]
[1749692098525,3.2078,2758.7,2758.4,0.6033]
[1749692098730,3.2078,2758.7,2758.4,1.32813]
[1749692098933,3.2078,2758.7,2758.5,0.72482]
[1749692099132,3.2078,2758.7,2758.6,0.72479]
[1749692099525,3.2078,2758.7,2758.5,1.2704]
[1749692099726,3.2078,2758.7,2758.4,0.6033]
[1749692100033,3.2078,2758.7,2758.5,0.72482]
[1749692100434,3.2078,2758.7,2758.6,0.72479]
[1749692100636,3.2078,2758.7,2758.5,0.72481]
[1749692100936,3.2078,2758.7,2758.6,0.72479]
[1749692101240,0.0054408,2758.8,2758.7,0.72477]
[1749692101430,0.0054408,2758.8,2758.7,7.03767]
[1749692102240,0.72478,2758.7,2758.4,0.6033]
[1749692102431,0.72481,2758.6,2758.4,0.6033]
[1749692102733,3.2132408,2758.8,2758.4,0.6033]
[1749692103038,0.0054408,2758.8,2758.7,0.72477]
[1749692103336,0.0054408,2758.8,2758.7,3.93257]
[1749692104238,3.2078,2759.5,2758.7,8.2078]
[1749692104538,3.2078,2759.5,2758.8,8.69336]
[1749692104734,3.2078,2759.8,2759.7,0.72451]
[1749692105137,3.2078,2759.8,2759.3,17.808]
[1749692105331,0.72458,2759.5,2759.3,24.0915]
[1749692105535,3.21140304,2759.8,2759.3,22.856]
[1749692105839,3.21140304,2759.8,2759.6,0.72452]
[1749692106035,3.21140304,2759.8,2759.4,1.2355]
[1749692106339,0.72457,2759.5,2759.2,1.34053]
[1749692106539,3.21140304,2759.8,2759.2,18.4299]
[1749692107035,3.21140304,2759.8,2759.3,1.2787]
[1749692107239,3.21140304,2759.8,2759.6,0.72452]
[1749692107442,3.93588304,2759.8,2759.6,0.72452]
[1749692107643,3.21140304,2759.8,2759.3,1.2787]
[1749692107838,3.21140304,2759.8,2759.7,0.72451]
[1749692108448,0.00360304,2759.8,2759.7,0.72451]
[1749692108739,0.00360304,2759.8,2759.2,3.8237]
[1749692108740,0.72456,2759.5,2759.2,3.8237]
[1749692109043,3.2078,2759.4,2759.2,1.34053]
[1749692109239,3.9324,2759.4,2759.2,0.6159]
[1749692109437,1.2897,2759.7,2759.2,1.34052]
[1749692109438,0.72457,2759.5,2759.2,1.34052]
[1749692109640,0.72456,2759.5,2759.2,0.6159]
[1749692109943,0.72465,2759.2,2759.0,22.861]
[1749692110145,0.72465,2759.2,2759.0,5.039]
[1749692110643,0.72462,2759.3,2759.1,0.72465]
[1749692110843,3.2078,2759.4,2759.2,0.72462]
[1749692111143,0.72457,2759.5,2759.2,0.72461]
[1749692111340,4.4975,2759.7,2759.0,8.2468]
[1749692111540,4.4975,2759.7,2759.2,0.72461]
[1749692111736,0.72457,2759.5,2759.1,1.2127]
[1749692111936,4.4975,2759.7,2759.1,1.2127]
[1749692111937,0.72464,2759.2,2759.1,1.2127]
[1749692112144,3.2078,2759.4,2758.7,3.2078]
[1749692112445,0.72472,2758.9,2758.7,3.93256]
[1749692112642,0.72472,2758.9,2758.7,3.93255]
[1749692112836,0.72463,2759.3,2759.1,0.72465]
[1749692113037,3.2078,2759.5,2759.3,0.7246]
[1749692113242,3.93237,2759.5,2759.3,0.7246]
[1749692113542,3.2078,2759.5,2759.4,0.72459]
[1749692113742,3.93236,2759.5,2759.3,0.7246]
[1749692113938,0.00360304,2759.8,2759.7,0.72451]
[1749692114340,0.00360304,2759.8,2759.6,17.809]
[1749692114649,0.00360304,2759.8,2759.7,0.7245]
[1749692115147,0.7245,2759.7,2759.6,17.809]
[1749692115348,3.21140304,2759.8,2759.4,1.2245]
[1749692115750,0.72454,2759.6,2759.4,1.94906]
[1749692115945,4.43840304,2759.8,2759.4,1.94906]
[1749692116146,0.72457,2759.5,2759.1,3.2078]
[1749692116450,0.72453,2759.7,2759.4,0.72457]
[1749692116649,0.72453,2759.7,2759.2,24.1447]
[1749692116850,0.72453,2759.7,2759.3,1.2857]
[1749692117242,4.43840304,2759.8,2759.3,0.654]
[1749692117449,0.72458,2759.5,2759.3,1.37859]
[1749692117648,0.72458,2759.5,2759.3,0.654]
[1749692117845,0.72454,2759.6,2759.4,0.72457]
[1749692118045,0.72457,2759.5,2759.3,1.3786]
[1749692118252,0.72455,2759.6,2759.4,0.72458]
[1749692118750,0.72455,2759.6,2759.5,0.72456]
[1749692118951,0.72453,2759.6,2759.5,0.72456]
[1749692119154,0.72453,2759.6,2759.3,0.654]
[1749692119155,0.72451,2759.7,2759.6,0.72453]
[1749692119351,3.21140304,2759.8,2759.7,0.7245]
[1749692119551,4.43291356,2759.8,2759.7,0.7245]
[1749692119743,3.21140304,2759.8,2759.7,0.7245]
[1749692120257,3.21140304,2759.8,2759.7,1.922]
[1749692120455,1.22829978,2759.8,2759.7,1.922]
[1749692120949,1.22829978,2759.8,2758.9,3.2078]
[1749692120950,9.43609978,2759.8,2758.9,3.2078]
[1749692121251,3.05329674,2759.7,2758.9,3.2078]
[1749692121551,1.82569674,2759.6,2759.0,0.595]
[1749692121750,1.22469674,2759.5,2758.9,3.2078]
[1749692122052,3.2078,2759.2,2758.6,0.595]
[1749692122259,3.2078,2758.9,2758.5,8.2348]
[1749692122548,2.55045674,2758.8,2758.5,8.95961]
[1749692122753,1.94946674,2758.7,2758.5,8.2348]
[1749692122959,0.601,2758.8,2758.3,0.0054408]
[1749692123156,0.72485,2758.4,2758.3,0.0054408]
[1749692123352,1.2231087,2758.4,2758.3,0.0054408]
[1749692123553,1.9479487,2758.4,2758.3,0.0054408]
[1749692123753,1.2231087,2758.4,2758.3,0.7303108]
[1749692123947,1.9479587,2758.4,2758.3,0.0054408]
[1749692124850,2.5480587,2758.4,2758.3,0.0054408]
[1749692125359,3.8165587,2758.4,2758.3,0.0054408]
[1749692127355,8.0917087,2758.4,2757.7,5.027]
[1749692127550,0.72499,2757.9,2757.5,1.32988]
[1749692127956,1.31777,2758.0,2757.6,0.72505]
[1749692128158,0.72501,2757.8,2757.5,1.32986]
[1749692128349,0.72508,2757.5,2757.4,3.2132408]
[1749692129151,0.72508,2757.5,2757.4,0.0054408]
[1749692129554,3.2078,2757.7,2757.4,0.0054408]
[1749692129752,0.72502,2757.8,2757.4,1.2082408]
[1749692129957,0.0054408,2757.9,2757.4,0.0054408]
[1749692129958,0.72508,2757.5,2757.4,0.0054408]
[1749692130557,1.9495267,2757.5,2757.4,0.0054408]
[1749692130859,0.72525,2756.9,2756.7,0.72529]
[1749692131062,0.72526,2756.9,2756.7,0.72528]
[1749692131260,3.2078,2757.2,2756.6,3.2078]
[1749692131461,0.72528,2756.8,2756.6,3.2078]
[1749692131760,0.72528,2756.8,2756.6,3.9331]
[1749692131964,1.2493,2757.1,2756.6,3.2078]
[1749692132362,3.93311,2756.7,2756.5,1.32155]
[1749692132569,4.56033,2757.0,2756.7,0.72527]
[1749692132868,0.72525,2756.9,2756.7,0.72529]
[1749692133560,3.93302,2757.0,2756.8,0.72527]
[1749692133766,3.2078,2757.0,2756.8,0.72527]
[1749692133965,0.0037,2757.3,2756.9,20.9848]
[1749692134165,3.2078,2757.0,2756.5,0.5962]
[1749692134369,3.93312,2756.6,2756.5,0.5962]
[1749692134663,0.72529,2756.8,2756.6,0.72532]
[1749692134871,3.2078,2757.2,2756.5,0.5962]
[1749692135063,3.2078,2757.2,2756.6,4.5006]
[1749692135263,3.2078,2757.2,2756.9,0.72523]
[1749692135464,0.72519,2757.1,2756.9,0.72523]
[1749692135766,0.0037,2757.3,2757.2,0.72516]
[1749692136166,0.0037,2757.3,2757.0,0.72521]
[1749692136470,0.72513,2757.4,2757.1,2.01798]
[1749692136665,3.2078,2757.2,2756.6,3.2078]
[1749692136869,0.72529,2756.7,2756.6,3.2078]
[1749692137668,0.72531,2756.7,2756.5,1.2473]
[1749692137868,3.93311,2756.7,2756.5,1.2473]
[1749692138271,3.9331,2756.7,2756.5,1.2473]
[1749692138470,3.9331,2756.7,2756.5,1.97265]
[1749692138667,3.9331,2756.7,2756.5,1.2473]
[1749692139062,0.72532,2756.6,2756.5,1.2473]
[1749692139373,0.6059,2756.9,2756.8,0.72527]
[1749692139566,3.2078,2757.3,2756.6,3.2078]
[1749692139770,3.2078,2757.3,2757.0,0.72521]
[1749692139971,0.72518,2757.2,2756.9,0.72522]
[1749692140171,0.72517,2757.2,2756.9,0.72522]
[1749692140467,3.93295,2757.3,2757.0,1.91631]
[1749692140674,3.2078,2757.3,2757.0,1.1911]
[1749692140869,0.72519,2757.1,2757.0,1.1911]
[1749692141175,1.26917,2757.2,2757.0,1.1911]
[1749692141376,0.72519,2757.1,2757.0,1.1911]
[1749692141576,1.26918,2757.2,2757.0,1.1911]
[1749692141769,0.72519,2757.1,2757.0,1.1911]
[1749692141968,1.26918,2757.2,2757.0,1.1911]
[1749692142270,1.26918,2757.2,2757.0,1.91631]
[1749692142470,0.544,2757.2,2757.1,0.72519]
[1749692142667,0.544,2757.2,2757.1,1.31549]
[1749692143174,0.0038,2757.5,2757.4,0.72511]
[1749692143372,3.2078,2757.6,2757.5,0.72508]
[1749692143669,3.2132408,2757.9,2757.8,0.725]
[1749692143977,0.0054408,2757.9,2757.8,0.725]
[1749692144173,0.0054408,2757.9,2757.8,7.5294]
[1749692144371,0.0054408,2757.9,2757.8,2.5294]
[1749692144674,0.0054408,2757.9,2757.8,1.8044]
[1749692144877,0.0054408,2757.9,2757.8,2.5294]
[1749692145078,0.7304208,2757.9,2757.8,1.8044]
[1749692145273,3.2132408,2757.9,2757.5,17.778]
[1749692145567,3.93286,2757.6,2757.5,17.778]
[1749692145774,0.72504,2757.7,2757.5,17.778]
[1749692145975,0.72502,2757.8,2757.5,18.50308]
[1749692146371,0.72501,2757.8,2757.5,18.50307]
[1749692146978,0.2954408,2757.9,2757.5,17.778]
[1749692147178,1.0204308,2757.9,2757.6,2.02764]
[1749692147374,0.2954408,2757.9,2757.6,1.3026]
[1749692147572,0.2954408,2757.9,2757.5,17.778]
[1749692147774,0.725,2757.8,2757.6,0.72506]
[1749692148284,0.2954408,2757.9,2757.8,0.725]
[1749692148581,1.0204308,2757.9,2757.7,0.72501]
[1749692148875,3.2132408,2757.9,2757.6,1.3026]
[1749692149077,3.2132408,2757.9,2757.8,0.725]
[1749692151183,3.2078,2758.3,2758.2,0.7249]
[1749692151378,3.2078,2758.3,2758.1,0.72491]
[1749692151875,3.2078,2758.3,2758.0,7.4408]
[1749692151876,0.7249,2758.2,2758.0,7.4408]
[1749692152076,0.72498,2757.9,2757.8,3.2132408]
[1749692152281,5.16925194,2757.9,2757.8,0.0054408]
[1749692153384,1.81252,2757.8,2757.1,0.6082]
[1749692153581,3.9329,2757.5,2757.2,0.72515]
[1749692153782,3.2078,2757.5,2757.3,0.72513]
[1749692154284,3.93289,2757.5,2757.2,0.72514]
[1749692154484,3.2078,2757.5,2757.4,0.72511]
[1749692154982,1.35524,2757.7,2757.4,0.72511]
[1749692155182,1.35524,2757.7,2757.5,0.72508]
[1749692155382,0.6302,2757.7,2757.5,0.72508]
[1749692155779,0.6302,2757.7,2757.2,1.2583]
[1749692155983,1.35523,2757.7,2757.2,1.2583]
[1749692156184,1.35523,2757.7,2757.4,0.72509]
[1749692156484,0.6302,2757.7,2757.5,0.72508]
[1749692156685,0.6302,2757.7,2757.2,1.2583]
[1749692156884,3.2078,2757.5,2757.4,0.72511]
[1749692158078,1.35523,2757.7,2757.5,0.72506]
[1749692158284,3.93286,2757.6,2757.4,0.7251]
[1749692158487,3.93287,2757.6,2757.4,0.7251]
[1749692158683,3.93287,2757.6,2757.2,1.2583]
[1749692158684,3.2078,2757.6,2757.5,0.72508]
[1749692158881,4.44486428,2757.6,2757.3,0.72514]
[1749692159187,1.96212606,2757.5,2757.3,0.72512]
[1749692159386,1.2369499,2757.4,2757.3,0.72512]
[1749692159781,5.15687,2757.6,2757.3,0.72512]
[1749692160085,1.23690109,2757.5,2757.4,0.72511]
[1749692160781,1.23690109,2757.5,2757.1,0.0054408]
[1749692160985,3.93296,2757.2,2757.1,0.0054408]
[1749692161190,0.72531,2756.7,2756.5,1.96584]
[1749692161488,3.2078,2756.8,2756.5,0.6327]
[1749692161689,1.2473507,2756.7,2756.6,0.72531]
[1749692161981,1.875,2757.1,2757.0,0.72521]
[1749692161982,3.2078,2757.1,2757.0,0.72521]
[1749692162186,1.24773623,2757.1,2757.0,0.72521]
[1749692162385,0.0054408,2757.3,2757.2,0.72516]
[1749692162584,1.25325844,2757.3,2757.2,0.72516]
[1749692163783,0.72524,2756.9,2756.8,0.0054408]
[1749692164288,1.96982723,2756.9,2756.8,0.0054408]
[1749692164587,3.84952723,2756.9,2756.8,0.0054408]
[1749692164990,1.84758723,2756.9,2756.8,0.7307108]
[1749692165683,1.24458723,2756.9,2756.8,0.7307108]
[1749692166085,0.0054408,2757.3,2757.1,0.72517]
[1749692166292,1.24550247,2757.2,2757.1,0.72517]
[1749692166986,0.0054408,2757.3,2757.2,0.72516]
[1749692167185,3.2078,2757.5,2757.4,0.72511]
[1749692167394,4.45379103,2757.5,2757.4,18.36911]
[1749692167793,1.24599103,2757.5,2757.4,18.36911]
[1749692167986,3.2078,2757.8,2757.7,0.72503]
[1749692168188,1.24659362,2757.8,2757.7,0.72503]
[1749692169489,0.0054408,2758.0,2757.9,0.72498]
[1749692169793,1.25443481,2758.0,2757.9,0.72498]
[1749692170595,0.0054408,2758.0,2757.9,0.72498]
[1749692170794,1.25335598,2758.0,2757.9,1.91448]
[1749692171094,0.0054408,2758.0,2757.9,1.91448]
[1749692171294,0.0054408,2758.0,2757.7,3.2078]
[1749692171499,0.0054408,2758.0,2757.8,18.33799]
[1749692172295,0.0054408,2758.0,2757.9,0.72498]
[1749692172588,1.25357358,2758.0,2757.9,0.72498]
[1749692173291,0.0054408,2758.0,2757.9,1.91448]
[1749692173999,0.0054408,2758.0,2757.9,6.91448]
[1749692174392,0.0054408,2758.0,2757.9,1.91448]
[1749692175092,0.2954408,2758.0,2757.9,18.32998]
[1749692175292,0.2954408,2758.0,2757.9,18.32198]
[1749692176893,0.2954408,2758.0,2757.5,0.5947]
[1749692177297,3.2078,2757.7,2757.3,4.871]
[1749692177498,0.72509,2757.5,2757.3,23.19413]
[1749692177886,1.34056,2757.6,2757.4,0.72508]
[1749692178092,0.6155,2757.6,2757.5,0.72508]
[1749692178289,0.72509,2757.5,2757.4,0.7251]
[1749692178498,0.6155,2757.6,2757.3,22.469]
[1749692178798,0.6155,2757.6,2757.0,3.2078]
[1749692179097,3.93283,2757.7,2757.5,0.72508]
[1749692179502,3.2078,2757.7,2757.1,2.5337]
[1749692179799,0.7251,2757.5,2757.1,2.5337]
[1749692179998,3.2078,2757.7,2757.3,0.72512]
[1749692180198,0.7251,2757.5,2757.3,0.72512]
[1749692180799,3.2078,2757.7,2757.1,2.5337]
[1749692181094,3.2078,2757.7,2757.1,0.6192]
[1749692181095,1.243,2757.6,2757.1,0.6192]
[1749692181301,0.72509,2757.5,2757.3,0.72512]
[1749692181509,1.243,2757.6,2757.1,0.6192]
[1749692181696,0.72512,2757.4,2757.2,0.72515]
[1749692181999,1.243,2757.6,2757.1,1.34437]
[1749692182196,0.72514,2757.3,2757.1,1.34437]
[1749692182703,1.243,2757.6,2757.2,0.72516]
[1749692182999,1.24747977,2757.5,2757.2,0.72516]
[1749692183194,0.72507,2757.6,2757.1,0.6192]
[1749692183401,0.72507,2757.6,2757.2,1.2579]
[1749692183701,0.72515,2757.3,2757.1,0.6192]
[1749692183909,1.2951,2757.6,2757.1,0.6192]
[1749692184199,1.2951,2757.6,2757.2,0.72516]
[1749692184200,1.24764229,2757.5,2757.2,0.72516]
[1749692184401,0.72514,2757.3,2757.2,0.72516]
[1749692185302,0.72514,2757.3,2757.1,0.6192]
[1749692185303,0.6351,2757.4,2757.3,0.72514]
[1749692186795,3.2078,2757.7,2757.6,0.72505]
[1749692187195,3.5032408,2758.0,2757.9,0.72498]
[1749692187395,0.2954408,2758.0,2757.9,0.72498]
[1749692188701,0.2954408,2758.0,2757.7,17.541]
[1749692188903,1.36739,2757.9,2757.7,18.26602]
[1749692189100,0.6424,2757.9,2757.3,1.2396]
[1749692189403,0.7251,2757.5,2757.3,1.96473]
[1749692189605,3.2078,2757.5,2757.1,0.72517]
[1749692189905,0.72512,2757.4,2757.2,0.72516]
[1749692190101,3.2078,2757.5,2757.1,17.549]
[1749692190303,0.72504,2757.7,2757.5,0.72507]
[1749692190500,1.26098134,2757.6,2757.5,0.72508]
[1749692190707,0.2991408,2758.0,2757.5,8.0798]
[1749692191004,3.2078,2758.6,2758.5,0.72482]
[1749692191497,3.2078,2758.9,2758.7,0.72476]
[1749692191701,0.72479,2758.6,2758.5,1.2396]
[1749692192009,0.72479,2758.7,2758.4,23.0494]
[1749692192507,0.72482,2758.5,2758.4,17.58]
[1749692192809,0.72482,2758.5,2758.3,0.0054408]
[1749692192810,0.72485,2758.4,2758.3,0.0054408]
[1749692193009,3.87100525,2758.4,2758.3,0.0054408]
[1749692193802,0.725,2757.8,2757.7,0.6061]
[1749692194109,3.2078,2757.9,2757.7,0.6061]
[1749692194306,0.29,2757.8,2757.7,1.33113]
[1749692195610,0.29,2757.8,2757.7,2.58063]
[1749692196013,0.29,2757.8,2757.7,1.33113]
[1749692196724,0.29,2757.8,2757.7,2.58063]
[1749692199419,1.5512311,2757.8,2757.7,18.25103]
[1749692199621,0.29,2757.8,2757.7,18.25103]
[1749692201916,0.29,2757.8,2757.5,22.6655008]
[1749692202122,0.29,2757.8,2757.7,17.523]
[1749692202322,0.29,2757.8,2757.7,18.24803]
[1749692203327,0.29,2757.8,2757.7,21.45583]
[1749692203826,0.29,2757.8,2757.7,23.09503]
[1749692204422,0.29,2757.8,2757.7,31.30283]
[1749692206028,0.29,2757.8,2757.7,18.21103]
[1749692206226,0.72503,2757.7,2757.6,17.489]
[1749692206528,0.29,2757.8,2757.5,0.0054408]
[1749692206730,0.72506,2757.6,2757.5,0.0054408]
[1749692207026,0.72527,2756.8,2756.4,3.2078]
[1749692207222,0.7253,2756.7,2756.5,0.6266]
[1749692207423,3.2078,2757.0,2756.5,18.1366]
[1749692207623,1.1966,2756.9,2756.5,18.1366]
[1749692207821,1.92186,2756.9,2756.6,0.72532]
[1749692208024,0.72527,2756.8,2756.5,1.3573708]
[1749692208226,0.72531,2756.7,2756.5,17.5064408]
[1749692208423,1.36011,2756.7,2756.5,0.0054408]
[1749692208639,5.12972,2756.6,2756.5,0.0054408]
[1749692209028,5.12972,2756.6,2756.0,17.503]
[1749692209029,10.67808029,2756.6,2756.0,17.503]
[1749692209226,3.2078,2756.2,2756.0,17.503]
[1749692209428,0.72545,2756.1,2756.0,17.503]
[1749692210030,3.2078,2756.2,2756.0,17.503]
[1749692210330,3.2078,2756.2,2756.1,0.72545]
[1749692210529,3.8426,2756.7,2756.6,0.72532]
[1749692211326,0.6348,2756.7,2756.5,0.72533]
[1749692211529,3.2078,2756.6,2756.2,6.1781]
[1749692211728,3.2078,2756.6,2755.9,0.6266]
[1749692211729,3.2078,2756.3,2755.9,0.6266]
[1749692211928,3.93321,2756.3,2756.0,0.72548]
[1749692212332,3.2078,2756.3,2755.8,3.2132408]
[1749692212635,2.4298,2756.2,2755.8,3.2132408]
[1749692212835,1.2344,2756.2,2755.8,0.0054408]
[1749692213031,1.2344,2756.2,2756.1,0.72545]
[1749692213236,1.95984,2756.2,2755.9,0.7255]
[1749692213528,0.7255,2755.9,2755.8,0.0054408]
[1749692213932,6.2493,2755.9,2754.9,1.9227]
[1749692214129,6.2493,2755.9,2754.8,3.2078]
[1749692214130,3.2078,2755.3,2754.8,0.6311]
[1749692214439,3.2078,2754.9,2754.7,0.00968189]
[1749692214638,3.2078,2754.9,2754.8,0.72579]
[1749692215134,0.2903,2754.9,2754.8,0.72579]
[1749692215338,4.481,2755.8,2755.7,0.72556]
[1749692216141,5.3491472,2756.1,2755.6,0.72557]
[1749692216431,3.2078,2755.8,2755.3,17.508]
[1749692216737,3.93334,2755.8,2755.4,0.72562]
[1749692217040,3.2078,2755.8,2755.3,17.508]
[1749692217224,3.2078,2755.8,2755.7,0.72556]
[1749692217726,3.2132408,2756.1,2755.3,18.7922]
[1749692217924,4.4773408,2756.1,2755.6,0.72557]
[1749692218133,5.2028008,2756.1,2755.3,18.7922]
[1749692218436,5.2028008,2756.1,2755.8,0.72552]
[1749692218636,5.2028008,2756.1,2755.4,3.2078]
[1749692218842,4.4773408,2756.1,2755.8,0.72552]
[1749692219133,4.4773408,2756.1,2755.3,18.7922]
[1749692219134,3.2132408,2756.1,2755.3,18.7922]
[1749692219335,3.2132408,2756.1,2755.8,0.72551]
[1749692219532,3.2132408,2756.1,2755.9,0.7255]
[1749692219726,3.2132408,2756.1,2755.9,0.72549]
[1749692219931,3.2132408,2756.1,2756.0,0.72548]
[1749692220630,0.72549,2756.0,2755.7,0.72554]
[1749692220836,3.2078,2755.8,2755.5,18.113]
[1749692221036,3.2078,2755.8,2755.7,0.72556]
[1749692222428,0.0054408,2756.1,2755.5,0.627]
[1749692222634,3.2078,2755.7,2755.6,0.72558]
[1749692223038,3.2078,2756.0,2755.9,0.7255]
[1749692223342,0.72551,2755.9,2755.6,0.72556]
[1749692223632,3.2078,2756.0,2755.7,0.72555]
[1749692223838,3.2078,2756.0,2755.4,17.472]
[1749692224144,0.72552,2755.9,2755.6,0.72556]
[1749692224535,5.1874,2756.0,2755.4,17.472]
[1749692225135,4.4619,2756.0,2755.4,17.472]
[1749692225337,4.4619,2756.0,2755.4,19.28606]
[1749692225538,0.0054408,2756.1,2756.0,0.72548]
[1749692225834,0.0054408,2756.1,2755.5,17.457]
[1749692226041,0.0054408,2756.1,2755.5,18.18259]
[1749692226042,3.2078,2755.6,2755.5,18.18259]
[1749692226340,3.2078,2755.6,2755.4,4.821]
[1749692226341,3.2078,2755.6,2755.4,5.54662]
[1749692226537,3.2078,2755.6,2755.4,4.821]
[1749692226737,3.2078,2755.6,2755.5,0.72561]
[1749692227134,3.93338,2755.6,2755.5,0.72561]
[1749692227435,8.2078,2755.6,2754.9,3.2078]
[1749692227742,0.72568,2755.3,2755.1,0.7257]
[1749692228341,0.72568,2755.3,2755.2,0.72569]
[1749692228540,0.72568,2755.3,2754.6,3.15508602]
[1749692228541,8.2078,2755.3,2754.6,0.14941602]